fUSD/lending_fUSD_20260601
["ID","MTS","AMOUNT","RATE_DAILY","PERIOD"]
[423688336,1780311555000,-344.17476393,8.654e-05,2]
[423688335,1780311555000,-4655.82523607,8.615e-05,2]
[423688334,1780311555000,-5000.0,8.615e-05,2]
[423688337,1780311556000,-155.82523607,8.654e-05,2]
[423688339,1780311556000,-500.0,8.928e-05,2]
[423688338,1780311556000,-270.82,8.827e-05,2]
[423688340,1780311562000,205.0,8.701e-05,2]
[423688342,1780311563000,205.0,8.873e-05,2]
[423688341,1780311563000,205.0,8.787e-05,2]
[423688343,1780311564000,205.0,8.96e-05,2]
[423688344,1780311611000,309.24019052,8.377e-05,2]
[423688347,1780311617000,871.37169115,8.377e-05,2]
[423688345,1780311617000,1036.37144113,8.377e-05,2]
[423688346,1780311617000,1036.37144113,8.377e-05,2]
[423688348,1780311617000,164.99974998,8.377e-05,2]
[423688353,1780311617000,689.5144855,8.377e-05,2]
[423688351,1780311617000,1036.37144113,8.377e-05,2]
[423688349,1780311617000,1036.37144113,8.377e-05,2]
[423688352,1780311617000,1036.37144113,8.377e-05,2]
[423688350,1780311617000,1036.37144113,8.377e-05,2]
[423688356,1780311618000,1546.0,0.0003013,120]
[423688355,1780311618000,1546.0,0.0003013,120]
[423688354,1780311618000,1546.0,0.0003013,120]
[423688360,1780311619000,1546.0,0.0003013,120]
[423688359,1780311619000,1546.0,0.0003013,120]
[423688358,1780311619000,1546.0,0.0003013,120]
[423688357,1780311619000,1546.0,0.0003013,120]
[423688361,1780311620000,1546.0,0.0003013,120]
[423688362,1780311620000,1546.0,0.0003013,120]
[423688364,1780311620000,1546.0,0.0003013,120]
[423688363,1780311620000,1546.0,0.0003013,120]
[423688367,1780311621000,1546.0,0.0003013,120]
[423688366,1780311621000,1546.0,0.0003013,120]
[423688365,1780311621000,1546.0,0.0003013,120]
[423688370,1780311622000,1546.0,0.0003013,120]
[423688369,1780311622000,1546.0,0.0003013,120]
[423688368,1780311622000,1546.0,0.0003013,120]
[423688372,1780311624000,280.61209394,0.0003013,120]
[423688371,1780311624000,163.0,0.0003013,120]
[423688374,1780311628000,151.0,0.0003013,120]
[423688373,1780311628000,151.0,0.0003013,120]
[423688375,1780311629000,151.0,0.0003013,120]
[423688376,1780311629000,151.0,0.0003013,120]
[423688377,1780311629000,151.0,0.0003013,120]
[423688378,1780311629000,151.0,0.0003013,120]
[423688382,1780311630000,151.0,0.0003013,120]
[423688381,1780311630000,151.0,0.0003013,120]
[423688380,1780311630000,151.0,0.0003013,120]
[423688379,1780311630000,151.0,0.0003013,120]
[423688387,1780311633000,153.0,0.0003013,120]
[423688386,1780311633000,153.0,0.0003013,120]
[423688385,1780311633000,153.0,0.0003013,120]
[423688384,1780311633000,153.0,0.0003013,120]
[423688383,1780311633000,153.0,0.0003013,120]
[423688390,1780311634000,153.0,0.0003013,120]
[423688389,1780311634000,153.0,0.0003013,120]
[423688388,1780311634000,153.0,0.0003013,120]
[423688392,1780311686000,331.34,0.0003,120]
[423688398,1780311788000,194.65,0.00030082,120]
[423688399,1780311790000,250.5,0.000301,120]
[423688402,1780311842000,-523.3779,8.278e-05,2]
[423688401,1780311842000,-4176.6221,8.278e-05,2]
[423688400,1780311842000,-300.0,8.277e-05,2]
[423688403,1780311843000,-5000.0,8.278e-05,2]
[423688404,1780311844000,-5000.0,8.278e-05,2]
[423688405,1780311845000,-5000.0,8.278e-05,2]
[423688408,1780311846000,-500.0,8.375e-05,2]
[423688406,1780311846000,-2299.7577,8.278e-05,2]
[423688407,1780311846000,-150.0,8.374e-05,2]
[423688410,1780311846000,-500.0,8.375e-05,2]
[423688411,1780311846000,-500.0,8.375e-05,2]
[423688415,1780311846000,-214.50327575,8.375e-05,2]
[423688414,1780311846000,-135.60226012,8.375e-05,2]
[423688409,1780311846000,-185.84456012,8.375e-05,2]
[423688412,1780311846000,-500.0,8.375e-05,2]
[423688413,1780311846000,-364.39773988,8.375e-05,2]
[423688417,1780311847000,-250.93527978,8.375e-05,2]
[423688418,1780311847000,-500.0,8.375e-05,2]
[423688416,1780311847000,-500.0,8.375e-05,2]
[423688420,1780311847000,-500.0,8.375e-05,2]
[423688419,1780311847000,-500.0,8.375e-05,2]
[423688421,1780311847000,-500.0,8.375e-05,2]
[423688422,1780311847000,-500.0,8.375e-05,2]
[423688423,1780311847000,-500.0,8.375e-05,2]
[423688425,1780311847000,-500.0,8.375e-05,2]
[423688426,1780311847000,-196.32950935,8.375e-05,2]
[423688427,1780311847000,-303.67049065,8.375e-05,2]
[423688428,1780311847000,-500.0,8.375e-05,2]
[423688429,1780311847000,-500.0,8.375e-05,2]
[423688431,1780311847000,-500.0,8.375e-05,2]
[423688430,1780311847000,-500.0,8.375e-05,2]
[423688432,1780311847000,-500.0,8.375e-05,2]
[423688424,1780311847000,-202.629675,8.375e-05,2]
[423688434,1780311848000,-500.0,8.375e-05,2]
[423688433,1780311848000,-500.0,8.375e-05,2]
[423688435,1780311848000,-500.0,8.375e-05,2]
[423688436,1780311848000,-500.0,8.375e-05,2]
[423688438,1780311848000,-253.67049065,8.375e-05,2]
[423688439,1780311848000,-500.0,8.375e-05,2]
[423688440,1780311848000,-500.0,8.375e-05,2]
[423688441,1780311848000,-500.0,8.375e-05,2]
[423688442,1780311848000,-500.0,8.375e-05,2]
[423688437,1780311848000,-196.32950935,8.375e-05,2]
[423688445,1780311849000,-500.0,8.375e-05,2]
[423688444,1780311849000,-500.0,8.375e-05,2]
[423688446,1780311849000,-500.0,8.375e-05,2]
[423688443,1780311849000,-500.0,8.375e-05,2]
[423688447,1780311849000,-500.0,8.375e-05,2]
[423688450,1780311849000,-500.0,8.375e-05,2]
[423688449,1780311849000,-253.67049065,8.375e-05,2]
[423688448,1780311849000,-246.32950935,8.375e-05,2]
[423688456,1780311850000,-549.36297243,8.375e-05,2]
[423688455,1780311850000,-715.86785483,8.375e-05,2]
[423688454,1780311850000,-1265.23082726,8.375e-05,2]
[423688453,1780311850000,-1265.23082726,8.375e-05,2]
[423688451,1780311850000,-500.0,8.375e-05,2]
[423688452,1780311850000,-500.0,8.375e-05,2]
[423688459,1780311851000,-1265.23082726,8.375e-05,2]
[423688460,1780311851000,-654.94454579,8.375e-05,2]
[423688458,1780311851000,-1265.23082726,8.375e-05,2]
[423688457,1780311851000,-1265.23082726,8.375e-05,2]
[423688462,1780311852000,-1265.23082726,8.375e-05,2]
[423688463,1780311852000,-1265.23082726,8.375e-05,2]
[423688461,1780311852000,-610.28628147,8.375e-05,2]
[423688465,1780311852000,-594.02123675,8.375e-05,2]
[423688466,1780311852000,-671.20959051,8.375e-05,2]
[423688467,1780311852000,-1265.23082726,8.375e-05,2]
[423688464,1780311852000,-1265.23082726,8.375e-05,2]
[423688472,1780311853000,-1265.23082726,8.375e-05,2]
[423688471,1780311853000,-732.13289955,8.375e-05,2]
[423688470,1780311853000,-533.09792771,8.375e-05,2]
[423688469,1780311853000,-1265.23082726,8.375e-05,2]
[423688468,1780311853000,-1265.23082726,8.375e-05,2]
[423688473,1780311854000,-1265.23082726,8.375e-05,2]
[423688475,1780311854000,-472.17461867,8.375e-05,2]
[423688476,1780311854000,-793.05620859,8.375e-05,2]
[423688474,1780311854000,-1265.23082726,8.375e-05,2]
[423688478,1780311854000,-1265.23082726,8.375e-05,2]
[423688479,1780311854000,-1265.23082726,8.375e-05,2]
[423688480,1780311854000,-411.25130963,8.375e-05,2]
[423688477,1780311854000,-1265.23082726,8.375e-05,2]
[423688484,1780311855000,-1265.23082726,8.375e-05,2]
[423688485,1780311855000,-350.32800059,8.375e-05,2]
[423688482,1780311855000,-1265.23082726,8.375e-05,2]
[423688483,1780311855000,-1265.23082726,8.375e-05,2]
[423688481,1780311855000,-853.97951763,8.375e-05,2]
[423688489,1780311856000,-1265.23082726,8.375e-05,2]
[423688490,1780311856000,-289.40469155,8.375e-05,2]
[423688488,1780311856000,-1265.23082726,8.375e-05,2]
[423688487,1780311856000,-1265.23082726,8.375e-05,2]
[423688486,1780311856000,-914.90282667,8.375e-05,2]
[423688492,1780311857000,-1265.23082726,8.375e-05,2]
[423688491,1780311857000,-975.82613571,8.375e-05,2]
[423688495,1780311857000,-228.48138251,8.375e-05,2]
[423688493,1780311857000,-1265.23082726,8.375e-05,2]
[423688494,1780311857000,-1265.23082726,8.375e-05,2]
[423688499,1780311858000,-1265.23082726,8.375e-05,2]
[423688500,1780311858000,-167.55807347,8.375e-05,2]
[423688498,1780311858000,-1265.23082726,8.375e-05,2]
[423688497,1780311858000,-1265.23082726,8.375e-05,2]
[423688496,1780311858000,-1036.74944475,8.375e-05,2]
[423688505,1780311859000,-53.05332515,8.375e-05,2]
[423688504,1780311859000,-1278.62618708,8.375e-05,2]
[423688503,1780311859000,-1278.62618708,8.375e-05,2]
[423688502,1780311859000,-1278.62618708,8.375e-05,2]
[423688501,1780311859000,-1111.06811361,8.375e-05,2]
[423688506,1780311860000,-1225.57286193,8.375e-05,2]
[423688507,1780311860000,-1278.62618708,8.375e-05,2]
[423688508,1780311860000,-1278.62618708,8.375e-05,2]
[423688513,1780311861000,-1278.62618708,8.375e-05,2]
[423688511,1780311861000,-1278.62618708,8.375e-05,2]
[423688510,1780311861000,-61.45142317,8.375e-05,2]
[423688512,1780311861000,-1278.62618708,8.375e-05,2]
[423688509,1780311861000,-1217.17476391,8.375e-05,2]
[423688514,1780311861000,-1102.67001559,8.375e-05,2]
[423688516,1780311862000,-1278.62618708,8.375e-05,2]
[423688515,1780311862000,-175.95617149,8.375e-05,2]
[423688519,1780311863000,-988.16526727,8.375e-05,2]
[423688518,1780311863000,-1278.62618708,8.375e-05,2]
[423688517,1780311863000,-1278.62618708,8.375e-05,2]
[423688521,1780311921000,-701.62,7.743e-05,2]
[423688522,1780311921000,-701.62,7.785e-05,2]
[423688520,1780311921000,163.0,0.0003013,120]
[423688523,1780311921000,-701.62,7.828e-05,2]
[423688526,1780311921000,-701.62,7.957e-05,2]
[423688525,1780311921000,-701.62,7.914e-05,2]
[423688528,1780311921000,-88.66,8.043e-05,2]
[423688524,1780311921000,-701.62,7.871e-05,2]
[423688527,1780311921000,-701.62,8e-05,2]
[423688535,1780311922000,-701.62,8.257e-05,2]
[423688534,1780311922000,-701.62,8.214e-05,2]
[423688533,1780311922000,-200.0,8.18e-05,2]
[423688532,1780311922000,-701.62,8.172e-05,2]
[423688530,1780311922000,-701.62,8.086e-05,2]
[423688531,1780311922000,-701.62,8.129e-05,2]
[423688529,1780311922000,-612.96,8.043e-05,2]
[423688536,1780311923000,-678.94,8.3e-05,2]
[423688539,1780311923000,-1200.0,8.374e-05,2]
[423688537,1780311923000,-22.68,8.3e-05,2]
[423688540,1780311923000,-300.0,8.374e-05,2]
[423688541,1780311923000,-500.0,8.375e-05,2]
[423688538,1780311923000,-701.62,8.343e-05,2]
[423688546,1780311924000,-1278.62618708,8.375e-05,2]
[423688545,1780311924000,-572.01329397,8.375e-05,2]
[423688544,1780311924000,-706.61289311,8.375e-05,2]
[423688543,1780311924000,-1278.62618708,8.375e-05,2]
[423688542,1780311924000,-290.46091981,8.375e-05,2]
[423688550,1780311925000,-5000.0,8.375e-05,2]
[423688548,1780311925000,-1278.62618708,8.375e-05,2]
[423688549,1780311925000,-592.10814479,8.386e-05,2]
[423688547,1780311925000,-1278.62618708,8.375e-05,2]
[423688552,1780311928000,-2552.80338395,8.375e-05,2]
[423688551,1780311928000,-2447.19661605,8.375e-05,2]
[423688553,1780311929000,-2340.56561091,8.375e-05,2]
[423688556,1780311930000,-109.51185521,8.386e-05,2]
[423688557,1780311930000,-67.18777281,8.429e-05,2]
[423688555,1780311930000,-263.39072739,8.375e-05,2]
[423688554,1780311930000,-2219.34403368,8.375e-05,2]
[423688558,1780311931000,-634.43222719,8.429e-05,2]
[423688560,1780311931000,-701.62,8.472e-05,2]
[423688559,1780311931000,-150.0,8.46e-05,2]
[423688561,1780311931000,-701.62,8.515e-05,2]
[423688563,1780311931000,-701.62,8.558e-05,2]
[423688564,1780311931000,-150.0,8.627e-05,2]
[423688562,1780311931000,-150.0,8.544e-05,2]
[423688566,1780311931000,-150.0,8.711e-05,2]
[423688567,1780311931000,-150.0,8.795e-05,2]
[423688568,1780311931000,-347.04822048,8.806e-05,2]
[423688570,1780311931000,-150.0,8.879e-05,2]
[423688569,1780311931000,-166.66,8.818e-05,2]
[423688571,1780311931000,-346.99955233,8.923e-05,2]
[423688565,1780311931000,-500.0,8.649e-05,2]
[423688573,1780311932000,-150.0,8.962e-05,2]
[423688572,1780311932000,-153.00044767,8.923e-05,2]
[423688574,1780311936000,2613.56481705,8.375e-05,2]
[423688576,1780311944000,-338.84263886,9.046e-05,2]
[423688579,1780311944000,-186.22499167,9.105e-05,2]
[423688577,1780311944000,-250.0,9.073e-05,2]
[423688582,1780311944000,-139.17750548,9.106e-05,2]
[423688581,1780311944000,-813.69959927,9.106e-05,2]
[423688578,1780311944000,-162.49,9.1e-05,2]
[423688580,1780311944000,-193.0,9.106e-05,2]
[423688583,1780311949000,-5000.0,8.375e-05,2]
[423688586,1780311971000,-250.0,8.626e-05,2]
[423688585,1780311971000,-372.48078518,8.375e-05,2]
[423688587,1780311971000,-1303.13095893,8.877e-05,2]
[423688584,1780311971000,-3074.38825589,8.375e-05,2]
[423688588,1780311980000,-1392.46904107,8.877e-05,2]
[423688593,1780311987000,-141.04846441,9.135e-05,2]
[423688591,1780311987000,-300.0,9.106e-05,2]
[423688592,1780311987000,-166.66,9.109e-05,2]
[423688590,1780311987000,-360.82249452,9.106e-05,2]
[423688589,1780311987000,-300.0,9.105e-05,2]
[423688595,1780312135000,-300.0,8.804e-05,2]
[423688596,1780312140000,2000.0,0.00030135,120]
[423688597,1780312189000,-150.0,8.803e-05,2]
[423688598,1780312191000,150.0,8.375e-05,7]
[423688599,1780312220000,407.35446709,0.0001,3]
[423688682,1780312242000,-300.0,8.803e-05,2]
[423688697,1780312243000,-271652.78254929,8.705e-05,2]
[423688684,1780312243000,-1149.99016759,8.705e-05,2]
[423688685,1780312243000,-314.93140406,8.705e-05,2]
[423688686,1780312243000,-584.0,8.705e-05,2]
[423688687,1780312243000,-2649.0,8.705e-05,2]
[423688688,1780312243000,-3683.35,8.705e-05,2]
[423688689,1780312243000,-3200.41564869,8.705e-05,2]
[423688691,1780312243000,-417.51182976,8.705e-05,2]
[423688692,1780312243000,-971.72153587,8.705e-05,2]
[423688690,1780312243000,-1512.86999631,8.705e-05,2]
[423688696,1780312243000,-303.8818997,8.705e-05,2]
[423688694,1780312243000,-1216.57072602,8.705e-05,2]
[423688698,1780312243000,-22878.05786266,8.705e-05,2]
[423688699,1780312243000,-947.66880428,8.705e-05,2]
[423688693,1780312243000,-2490.57914543,8.705e-05,2]
[423688702,1780312243000,-17291.79150603,8.705e-05,2]
[423688701,1780312243000,-5032.08514418,8.705e-05,2]
[423688715,1780312243000,-1200.0,8.803e-05,2]
[423688713,1780312243000,-3957.0,8.705e-05,2]
[423688712,1780312243000,-9814.23720301,8.705e-05,2]
[423688711,1780312243000,-39813.68421793,8.705e-05,2]
[423688710,1780312243000,-1711.23017621,8.705e-05,2]
[423688707,1780312243000,-112529.0331681,8.705e-05,2]
[423688714,1780312243000,-985387.81743004,8.705e-05,2]
[423688708,1780312243000,-413.48160874,8.705e-05,2]
[423688706,1780312243000,-1049.24108504,8.705e-05,2]
[423688705,1780312243000,-700.37599953,8.705e-05,2]
[423688700,1780312243000,-10582.84832172,8.705e-05,2]
[423688709,1780312243000,-8073.70803725,8.705e-05,2]
[423688703,1780312243000,-385.00293256,8.705e-05,2]
[423688773,1780312244000,-350.06679062,0.0001,2]
[423688759,1780312244000,-166.66,9.982e-05,2]
[423688757,1780312244000,-1008.75183792,9.894e-05,2]
[423688756,1780312244000,-500.0,9.764e-05,2]
[423688748,1780312244000,-250.0,9.684e-05,2]
[423688752,1780312244000,-2000.0,9.714e-05,2]
[423688745,1780312244000,-420.0,9.683e-05,2]
[423688750,1780312244000,-166.66,9.691e-05,2]
[423688747,1780312244000,-500.0,9.683e-05,2]
[423688761,1780312244000,-558.80076883,0.0001,2]
[423688754,1780312244000,-250.0,9.759e-05,2]
[423688764,1780312244000,-558.80076883,0.0001,2]
[423688784,1780312244000,-4000.0,0.00010027,2]
[423688771,1780312244000,-155.46161974,0.0001,2]
[423688768,1780312244000,-163.58,0.0001,2]
[423688769,1780312244000,-151.0,0.0001,2]
[423688778,1780312244000,-340.0,0.0001,2]
[423688776,1780312244000,-321.87755382,0.0001,2]
[423688782,1780312244000,-340.33902497,0.0001,2]
[423688780,1780312244000,-340.0,0.0001,2]
[423688786,1780312244000,-500.0,0.00010038,2]
[423688788,1780312244000,-179.67656459,0.00010183,7]
[423688792,1780312244000,-4000.0,0.00010278,2]
[423688793,1780312244000,-559.02971451,0.00010289,2]
[423688746,1780312244000,-1680.0,9.683e-05,2]
[423688766,1780312244000,-558.80076883,0.0001,2]
[423688744,1780312244000,-255.0,9.683e-05,2]
[423688718,1780312244000,-2500.0,9.118e-05,2]
[423688742,1780312244000,-500.0,9.49e-05,2]
[423688717,1780312244000,-1000.0,8.872e-05,2]
[423688716,1780312244000,-359889.33,8.805e-05,2]
[423688720,1780312244000,-250.0,9.213e-05,2]
[423688791,1780312244000,-166.66,0.00010273,2]
[423688719,1780312244000,-182.12,9.173e-05,2]
[423688722,1780312244000,-150.0,9.216e-05,2]
[423688721,1780312244000,-150.0,9.216e-05,2]
[423688725,1780312244000,-4999.99,9.216e-05,2]
[423688723,1780312244000,-9999.99,9.216e-05,2]
[423688724,1780312244000,-982.53,9.216e-05,2]
[423688726,1780312244000,-500.0,9.216e-05,2]
[423688728,1780312244000,-150.99,9.216e-05,2]
[423688741,1780312244000,-166.66,9.4e-05,2]
[423688729,1780312244000,-299.99,9.216e-05,2]
[423688731,1780312244000,-81641.36,9.218e-05,2]
[423688727,1780312244000,-999.99,9.216e-05,2]
[423688733,1780312244000,-9999.99,9.218e-05,2]
[423688732,1780312244000,-114892.37,9.218e-05,2]
[423688736,1780312244000,-500.0,9.35e-05,2]
[423688738,1780312244000,-170.2,9.35e-05,2]
[423688734,1780312244000,-9999.99,9.218e-05,2]
[423688735,1780312244000,-318.6,9.218e-05,2]
[423688737,1780312244000,-170.2,9.35e-05,2]
[423688740,1780312244000,-170.2,9.35e-05,2]
[423688739,1780312244000,-170.2,9.35e-05,2]
[423688743,1780312244000,-182.12,9.682e-05,2]
[423688730,1780312244000,-150.0,9.216e-05,2]
[423688794,1780312244000,-5000.0,0.00010299,2]
[423688790,1780312244000,-182.12,0.00010192,2]
[423688798,1780312244000,-500.0,0.00010586,2]
[423688828,1780312244000,-150.0,0.00010959,2]
[423688829,1780312244000,-4548.42,0.00010959,2]
[423688830,1780312244000,-150.0,0.00010959,2]
[423688831,1780312244000,-3405.36434717,0.00010989,2]
[423688834,1780312244000,-151.0,0.00010996,2]
[423688835,1780312244000,-151.0,0.00010996,2]
[423688837,1780312244000,-151.0,0.00010996,2]
[423688833,1780312244000,-151.0,0.00010996,2]
[423688836,1780312244000,-151.0,0.00010996,2]
[423688838,1780312244000,-151.0,0.00010996,2]
[423688839,1780312244000,-151.0,0.00010996,2]
[423688844,1780312244000,-681.99093812,0.00010998,3]
[423688832,1780312244000,-3405.36434717,0.00010989,2]
[423688842,1780312244000,-300.0,0.00010998,2]
[423688843,1780312244000,-1108.99789053,0.00010998,3]
[423688846,1780312244000,-1150.0,0.00010999,5]
[423688845,1780312244000,-150.0,0.00010998,2]
[423688848,1780312244000,-400.0,0.00010999,2]
[423688850,1780312244000,-1500.0,0.00010999,2]
[423688849,1780312244000,-400.0,0.00010999,2]
[423688847,1780312244000,-400.0,0.00010999,2]
[423688852,1780312244000,-250.0,0.00010999,2]
[423688851,1780312244000,-1500.0,0.00010999,2]
[423688854,1780312244000,-477.52,0.00011,2]
[423688853,1780312244000,-1500000.0,0.00010999,2]
[423688796,1780312244000,-500.0,0.00010312,2]
[423688841,1780312244000,-300.0,0.00010998,2]
[423688827,1780312244000,-548.40573694,0.00010958,13]
[423688840,1780312244000,-300.0,0.00010998,2]
[423688823,1780312244000,-500.0,0.00010958,9]
[423688800,1780312244000,-587.0,0.00010652,2]
[423688824,1780312244000,-500.0,0.00010958,10]
[423688799,1780312244000,-433.0,0.00010652,2]
[423688797,1780312244000,-4000.0,0.00010529,2]
[423688801,1780312244000,-2351.0,0.00010652,2]
[423688803,1780312244000,-3547.4,0.00010665,2]
[423688805,1780312244000,-4000.0,0.00010779,2]
[423688804,1780312244000,-182.12,0.00010702,2]
[423688808,1780312244000,-5000.0,0.00010899,2]
[423688806,1780312244000,-8618.50640152,0.000108,2]
[423688810,1780312244000,-799.97479175,0.00010899,2]
[423688809,1780312244000,-2377.90963851,0.00010899,2]
[423688813,1780312244000,-2397.52593932,0.00010899,2]
[423688807,1780312244000,-500.0,0.0001086,2]
[423688814,1780312244000,-1119.67961966,0.00010899,2]
[423688825,1780312244000,-500.0,0.00010958,11]
[423688811,1780312244000,-12357.06332079,0.00010899,2]
[423688822,1780312244000,-500.0,0.00010958,8]
[423688821,1780312244000,-500.0,0.00010958,7]
[423688820,1780312244000,-500.0,0.00010958,6]
[423688817,1780312244000,-500.0,0.00010958,3]
[423688826,1780312244000,-500.0,0.00010958,12]
[423688818,1780312244000,-500.0,0.00010958,4]
[423688815,1780312244000,-2000.0,0.00010928,2]
[423688816,1780312244000,-500.0,0.00010958,2]
[423688812,1780312244000,-12222.7125616,0.00010899,2]
[423688819,1780312244000,-500.0,0.00010958,5]
[423688897,1780312245000,-310.423214,0.00011823,2]
[423688896,1780312245000,-235.211607,0.00011823,2]
[423688895,1780312245000,-160.0,0.00011823,2]
[423688892,1780312245000,-359.0692,0.00011814,2]
[423688893,1780312245000,-1109.912618,0.00011814,2]
[423688889,1780312245000,-182.12,0.00011721,2]
[423688890,1780312245000,-160.0,0.00011814,2]
[423688891,1780312245000,-259.5346,0.00011814,2]
[423688888,1780312245000,-3292.0,0.00011717,2]
[423688887,1780312245000,-823.0,0.00011717,2]
[423688898,1780312245000,-500.0,0.0001189,2]
[423688894,1780312245000,-171.0,0.00011814,2]
[423688904,1780312245000,-152.0,0.00012158,30]
[423688911,1780312245000,-52416.9233139,0.00012351,2]
[423688913,1780312245000,-353.910818,0.00012404,2]
[423688901,1780312245000,-40532.18,0.00012055,2]
[423688902,1780312245000,-63736.88964845,0.00012064,2]
[423688903,1780312245000,-2000.0,0.00012142,2]
[423688908,1780312245000,-160.27,0.00012324,2]
[423688909,1780312245000,-194.65,0.00012329,2]
[423688905,1780312245000,-500.0,0.0001223,2]
[423688906,1780312245000,-182.12,0.00012231,2]
[423688907,1780312245000,-799.97479174,0.00012262,2]
[423688910,1780312245000,-426.03840816,0.00012329,2]
[423688912,1780312245000,-406.937517,0.00012404,2]
[423688886,1780312245000,-500.0,0.00011682,2]
[423688899,1780312245000,-52416.9233139,0.00011903,2]
[423688885,1780312245000,-250.0,0.00011632,2]
[423688855,1780312245000,-4000.0,0.0001103,2]
[423688884,1780312245000,-63736.88964845,0.00011594,2]
[423688856,1780312245000,-300.0,0.00011098,2]
[423688858,1780312245000,-300.0,0.00011098,2]
[423688860,1780312245000,-300.0,0.00011098,2]
[423688857,1780312245000,-300.0,0.00011098,2]
[423688861,1780312245000,-63736.88964852,0.00011099,2]
[423688859,1780312245000,-300.0,0.00011098,2]
[423688863,1780312245000,-63736.88964845,0.00011099,2]
[423688864,1780312245000,-63736.88964845,0.00011099,2]
[423688865,1780312245000,-63736.88964845,0.00011099,2]
[423688862,1780312245000,-63736.88964845,0.00011099,2]
[423688866,1780312245000,-52416.92331395,0.00011099,2]
[423688867,1780312245000,-52416.9233139,0.00011099,2]
[423688868,1780312245000,-52416.9233139,0.00011099,2]
[423688869,1780312245000,-52416.9233139,0.00011099,2]
[423688872,1780312245000,-300.0,0.00011123,2]
[423688873,1780312245000,-300.0,0.00011123,2]
[423688870,1780312245000,-52416.9233139,0.00011099,2]
[423688871,1780312245000,-52416.9233139,0.00011099,2]
[423688875,1780312245000,-500.0,0.00011134,2]
[423688876,1780312245000,-182.12,0.00011211,2]
[423688874,1780312245000,-63736.88964845,0.00011124,2]
[423688877,1780312245000,-160.0,0.00011274,2]
[423688879,1780312245000,-500.0,0.00011408,2]
[423688878,1780312245000,-1439.0,0.00011332,5]
[423688881,1780312245000,-300.0,0.00011455,2]
[423688880,1780312245000,-300.0,0.00011455,2]
[423688882,1780312245000,-52416.9233139,0.00011456,2]
[423688883,1780312245000,-314.99174282,0.00011593,2]
[423688914,1780312245000,-320.743101,0.00012414,2]
[423688900,1780312245000,-500.0,0.00011956,2]
[423688916,1780312245000,-500.0,0.00012504,2]
[423688947,1780312245000,-165.205,0.00013105,2]
[423688948,1780312245000,-3551.0,0.00013105,2]
[423688950,1780312245000,-525.0,0.00013105,2]
[423688952,1780312245000,-6068.0,0.00013181,2]
[423688951,1780312245000,-1227.873,0.00013178,2]
[423688953,1780312245000,-932.0,0.00013181,2]
[423688956,1780312245000,-1495.83,0.00013315,2]
[423688955,1780312245000,-2000.0,0.00013315,2]
[423688957,1780312245000,-500.0,0.00013325,2]
[423688954,1780312245000,-182.12,0.0001325,2]
[423688958,1780312245000,-500.0,0.00013356,2]
[423688959,1780312245000,-500.0,0.00013356,2]
[423688963,1780312245000,-500.0,0.00013425,2]
[423688964,1780312245000,-502.83414164,0.00013425,2]
[423688961,1780312245000,-2000.0,0.00013357,2]
[423688960,1780312245000,-1400.0,0.00013356,2]
[423688962,1780312245000,-1000.0,0.000134,2]
[423688965,1780312245000,-500.0,0.00013425,2]
[423688966,1780312245000,-500.0,0.00013425,2]
[423688968,1780312245000,-500.0,0.00013425,2]
[423688969,1780312245000,-500.0,0.00013425,2]
[423688967,1780312245000,-500.0,0.00013425,2]
[423688970,1780312245000,-500.0,0.00013425,2]
[423688971,1780312245000,-500.0,0.00013425,2]
[423688974,1780312245000,-500.0,0.00013425,2]
[423688975,1780312245000,-500.0,0.00013425,2]
[423688972,1780312245000,-500.0,0.00013425,2]
[423688949,1780312245000,-929.0,0.00013105,2]
[423688945,1780312245000,-500.0,0.00013052,2]
[423688915,1780312245000,-2695.6,0.00012428,2]
[423688944,1780312245000,-179.064744,0.00013005,2]
[423688942,1780312245000,-151.0,0.00013005,2]
[423688918,1780312245000,-319.23,0.000127,2]
[423688921,1780312245000,-52416.9233139,0.00012798,2]